bitfinex/quotes_SOLUSD_20250529
["timestamp","ask_amount","ask_price","bid_price","bid_amount"]
[1748531770165,10.06,170.61,170.57,20.98995552]
[1748531770375,31.04995552,170.61,170.57,20.98995552]
[1748531770567,31.04995552,170.61,170.5,5.86510263]
[1748531770568,68.24995552,170.61,170.56,20.98995552]
[1748531770752,20.98995552,170.6,170.55,20.98995552]
[1748531771084,20.98995552,170.59,170.54,20.98995552]
[1748531771249,47.26,170.61,170.55,20.98995552]
[1748531771451,20.98995552,170.6,170.55,20.98995552]
[1748531771679,20.98995552,170.6,170.56,20.98995552]
[1748531771877,47.26,170.61,170.57,20.98995552]
[1748531772057,20.98995552,170.59,170.55,20.98995552]
[1748531772249,10.06,170.61,170.57,20.98995552]
[1748531772449,68.24995552,170.61,170.56,20.98995552]
[1748531772645,31.04995552,170.61,170.56,20.98995552]
[1748531772845,20.98995552,170.59,170.54,20.98995552]
[1748531773068,20.98995552,170.6,170.56,20.98995552]
[1748531773278,168.28995552,170.6,170.56,20.98995552]
[1748531773647,147.3,170.6,170.56,20.98995552]
[1748531774055,168.28995552,170.6,170.56,20.98995552]
[1748531774468,168.28995552,170.6,170.55,20.98995552]
[1748531775966,20.98995552,170.59,170.55,20.98995552]
[1748531776170,20.98995552,170.59,170.54,20.98995552]
[1748531776366,20.98995552,170.57,170.52,20.98995552]
[1748531776567,20.98995552,170.57,170.53,20.98995552]
[1748531776782,20.98995552,170.58,170.54,20.98995552]
[1748531776956,194.28995552,170.6,170.56,20.98995552]
[1748531777283,147.3,170.6,170.57,20.98995552]
[1748531778189,147.3,170.59,170.58,20.98995552]
[1748531779993,147.3,170.59,170.54,1.5938]
[1748531780182,147.3,170.59,170.56,20.98995552]
[1748531781024,147.3,170.59,170.57,20.98995552]
[1748531781298,147.3,170.59,170.58,20.98995552]
[1748531784193,147.3,170.59,170.58,20.98995552]
[1748531784374,147.3,170.59,170.54,32.0676]
[1748531784579,147.3,170.59,170.58,20.98995552]
[1748531787034,147.3,170.59,170.57,20.98995552]
[1748531787239,184.48,170.59,170.57,20.98995552]
[1748531787598,184.48,170.59,170.58,20.98995552]
[1748531788026,147.3,170.59,170.58,20.98995552]
[1748531790211,147.3,170.59,170.57,20.98995552]
[1748531790432,37.16,170.58,170.54,20.98995552]
[1748531790608,58.14995552,170.58,170.5,1.5201]
[1748531790810,147.3,170.57,170.53,20.98995552]
[1748531791529,147.3,170.57,170.55,20.98995552]
[1748531791690,147.3,170.57,170.56,20.98995552]
[1748531792118,147.3,170.57,170.55,20.98995552]
[1748531792325,147.3,170.57,170.56,20.98995552]
[1748531792831,147.3,170.57,170.55,20.98995552]
[1748531793398,147.3,170.57,170.5,1.5201]
[1748531793399,147.3,170.57,170.5,7.38514689]
[1748531793625,147.3,170.57,170.54,20.98995552]
[1748531794337,147.3,170.57,170.55,20.98995552]
[1748531794708,147.3,170.57,170.56,20.98995552]
[1748531809040,47.18,170.62,170.56,20.98995552]
[1748531809245,47.18,170.62,170.6,20.98995552]
[1748531809544,47.18,170.62,170.55,5.86327428]
[1748531809749,47.18,170.62,170.6,20.98995552]
[1748531810522,147.3,170.63,170.61,20.98995552]
[1748531810714,10.04,170.67,170.62,20.98995552]
[1748531810919,10.04,170.67,170.58,26.0]
[1748531810920,37.14,170.66,170.65,20.98995552]
[1748531811157,37.14,170.66,170.63,20.98995552]
[1748531811740,10.04,170.67,170.63,20.98995552]
[1748531812044,37.14,170.66,170.63,20.98995552]
[1748531812630,26.0,170.63,170.55,5.43532928]
[1748531812829,20.98995552,170.61,170.56,20.98995552]
[1748531813137,37.14,170.62,170.57,20.98995552]
[1748531813850,37.14,170.62,170.58,20.98995552]
[1748531814057,58.12995552,170.62,170.57,20.98995552]
[1748531814924,37.14,170.62,170.58,20.98995552]
[1748531815642,26.0,170.63,170.59,20.98995552]
[1748531815845,37.14,170.61,170.58,20.98995552]
[1748531816823,37.14,170.61,170.52,26.0]
[1748531817027,58.12995552,170.61,170.56,20.98995552]
[1748531817752,58.12995552,170.61,170.52,31.86438198]
[1748531817753,37.14,170.61,170.57,20.98995552]
[1748531820927,58.12995552,170.61,170.57,20.98995552]
[1748531822042,20.98995552,170.6,170.55,20.98995552]
[1748531822235,58.12995552,170.61,170.56,20.98995552]
[1748531822751,58.12995552,170.61,170.57,20.98995552]
[1748531823054,147.3,170.6,170.57,20.98995552]
[1748531823471,147.3,170.6,170.56,20.98995552]
[1748531823759,58.12995552,170.61,170.53,20.98995552]
[1748531823760,20.98995552,170.58,170.53,20.98995552]
[1748531823929,58.10995552,170.57,170.52,20.98995552]
[1748531824252,147.3,170.56,170.52,20.98995552]
[1748531824452,168.28995552,170.56,170.51,20.98995552]
[1748531824858,147.3,170.56,170.53,20.98995552]
[1748531825070,147.3,170.56,170.55,20.98995552]
[1748531826536,147.3,170.56,170.5,26.0]
[1748531826862,147.3,170.56,170.54,20.98995552]
[1748531827258,147.3,170.56,170.52,20.98995552]
[1748531827639,37.12,170.55,170.52,20.98995552]
[1748531830961,37.12,170.55,170.51,20.98995552]
[1748531831261,37.12,170.55,170.52,20.98995552]
[1748531833668,37.12,170.55,170.47,38.50553355]
[1748531833851,37.12,170.55,170.46,10.02]
[1748531833852,168.28995552,170.54,170.46,10.02]
[1748531834165,168.28995552,170.54,170.5,20.98995552]
[1748531834166,147.3,170.54,170.5,20.98995552]
[1748531835449,168.28995552,170.54,170.5,20.98995552]
[1748531835783,168.28995552,170.54,170.49,20.98995552]
[1748531835959,147.3,170.54,170.52,20.98995552]
[1748531836169,147.3,170.54,170.53,20.98995552]
[1748531836742,147.3,170.54,170.47,5.86600985]
[1748531836960,147.3,170.54,170.52,20.98995552]
[1748531838163,184.42,170.54,170.52,20.98995552]
[1748531838874,184.42,170.54,170.51,20.98995552]
[1748531839370,184.42,170.54,170.52,20.98995552]
[1748531839672,184.42,170.54,170.53,20.98995552]
[1748531841773,184.42,170.54,170.52,20.98995552]
[1748531842269,10.02,170.57,170.53,20.98995552]
[1748531842470,10.02,170.57,170.56,20.98995552]
[1748531842776,10.02,170.57,170.55,20.98995552]
[1748531842980,10.02,170.57,170.53,20.98995552]
[1748531843305,31.00995552,170.57,170.53,20.98995552]
[1748531843939,20.98995552,170.56,170.52,20.98995552]
[1748531844245,20.98995552,170.54,170.46,10.02]
[1748531844467,58.08995552,170.53,170.48,20.98995552]
[1748531844665,20.98995552,170.52,170.48,20.98995552]
[1748531845774,58.08995552,170.53,170.48,20.98995552]
[1748531846141,20.98995552,170.51,170.46,20.98995552]
[1748531846457,147.3,170.52,170.4,30.51319104]
[1748531846458,20.98995552,170.47,170.42,20.98995552]
[1748531846657,37.1,170.46,170.42,20.98995552]
[1748531846878,37.1,170.46,170.4,11.86354218]
[1748531847059,58.08995552,170.46,170.41,20.98995552]
[1748531847977,37.1,170.46,170.43,20.98995552]
[1748531848287,37.1,170.48,170.45,20.98995552]
[1748531848459,37.1,170.48,170.4,17.73204097]
[1748531848660,58.08995552,170.48,170.43,20.98995552]
[1748531849959,37.1,170.48,170.44,20.98995552]
[1748531850560,37.1,170.48,170.45,20.98995552]
[1748531850755,37.1,170.48,170.43,5.86740181]
[1748531851089,31.00995552,170.5,170.45,20.98995552]
[1748531851398,37.1,170.48,170.45,26.85660171]
[1748531851561,37.1,170.48,170.46,20.98995552]
[1748531852766,37.1,170.48,170.43,5.86738717]
[1748531852966,37.1,170.48,170.45,20.98995552]
[1748531853172,37.1,170.48,170.46,20.98995552]
[1748531853573,147.3,170.52,170.47,26.85609032]
[1748531853766,147.3,170.52,170.5,20.98995552]
[1748531854363,147.3,170.52,170.51,20.98995552]
[1748531858378,47.1,170.55,170.51,20.98995552]
[1748531858579,10.0,170.55,170.53,20.98995552]
[1748531858967,184.4,170.56,170.54,20.98995552]
[1748531859870,147.3,170.56,170.54,20.98995552]
[1748531860064,147.3,170.56,170.55,20.98995552]
[1748531863012,147.3,170.56,170.54,20.98995552]
[1748531863168,147.3,170.56,170.52,20.98995552]
[1748531863372,147.3,170.56,170.51,20.98995552]
[1748531863706,168.28995552,170.56,170.51,20.98995552]
[1748531864071,20.98995552,170.55,170.5,20.98995552]
[1748531864300,37.08,170.54,170.5,20.98995552]
[1748531865822,37.08,170.54,170.51,20.98995552]
[1748531867702,37.08,170.54,170.52,20.98995552]
[1748531869278,184.38,170.55,170.53,20.98995552]
[1748531872607,184.38,170.55,170.49,5.86536566]
[1748531872795,184.38,170.55,170.52,20.98995552]
[1748531879907,168.28995552,170.59,170.54,20.98995552]
[1748531880110,11.5127,170.6,170.54,20.98995552]
[1748531880111,37.06,170.56,170.54,20.98995552]
[1748531880288,37.06,170.57,170.53,20.98995552]
[1748531881389,168.28995552,170.58,170.54,20.98995552]
[1748531881590,147.3,170.58,170.56,20.98995552]
[1748531881814,184.36,170.58,170.56,20.98995552]
[1748531882309,147.3,170.58,170.56,20.98995552]
[1748531882609,20.98995552,170.57,170.52,20.98995552]
[1748531883701,20.98995552,170.57,170.49,1.5258]
[1748531883895,147.3,170.56,170.52,20.98995552]
[1748531885501,168.28995552,170.56,170.51,20.98995552]
[1748531885892,37.06,170.55,170.51,20.98995552]
[1748531887410,37.06,170.55,170.52,20.98995552]
[1748531887804,37.06,170.55,170.53,20.98995552]
[1748531888220,37.06,170.55,170.52,20.98995552]
[1748531890899,37.06,170.55,170.53,20.98995552]
[1748531892218,37.06,170.55,170.52,20.98995552]
[1748531894737,37.06,170.55,170.53,20.98995552]
[1748531895305,37.06,170.55,170.54,20.98995552]
[1748531895506,147.3,170.56,170.53,20.98995552]
[1748531895875,147.3,170.56,170.54,20.98995552]
[1748531896634,147.3,170.56,170.55,20.98995552]
[1748531897002,147.3,170.62,170.55,20.98995552]
[1748531897199,147.3,170.62,170.52,6.0682]
[1748531897200,184.34,170.62,170.59,20.98995552]
[1748531897622,147.3,170.62,170.61,20.98995552]
[1748531897802,147.3,170.67,170.61,20.98995552]
[1748531898001,184.34,170.67,170.65,20.98995552]
[1748531898214,37.04,170.67,170.65,20.98995552]
[1748531898798,9.98,170.69,170.65,20.98995552]
[1748531898998,37.04,170.68,170.65,20.98995552]
[1748531899414,37.04,170.68,170.57,9.98]
[1748531899415,20.98995552,170.66,170.61,20.98995552]
[1748531899647,20.98995552,170.64,170.59,20.98995552]
[1748531899825,58.00995552,170.64,170.59,20.98995552]
[1748531902021,20.98995552,170.63,170.58,20.98995552]
[1748531902355,20.98995552,170.61,170.56,20.98995552]
[1748531902825,37.02,170.6,170.56,20.98995552]
[1748531903227,37.02,170.6,170.57,20.98995552]
[1748531903434,37.02,170.6,170.59,20.98995552]
[1748531905637,37.02,170.6,170.54,5.86367432]
[1748531905638,37.02,170.6,170.58,20.98995552]
[1748531906443,37.02,170.6,170.57,20.98995552]
[1748531906640,37.02,170.6,170.54,5.86367432]
[1748531906822,37.02,170.6,170.56,20.98995552]
[1748531907225,20.98995552,170.59,170.53,1.5377]
[1748531907546,58.00995552,170.6,170.55,20.98995552]
[1748531909441,37.02,170.6,170.56,20.98995552]
[1748531909947,58.00995552,170.6,170.55,20.98995552]
[1748531910530,37.02,170.6,170.56,20.98995552]
[1748531911842,58.00995552,170.6,170.55,20.98995552]
[1748531912850,58.00995552,170.6,170.56,20.98995552]
[1748531913928,58.00995552,170.6,170.52,9.98]
[1748531913929,20.98995552,170.58,170.52,9.98]
[1748531914126,168.28995552,170.57,170.52,20.98995552]
[1748531914327,57.98995552,170.56,170.51,20.98995552]
[1748531914758,20.98995552,170.55,170.51,20.98995552]
[1748531915048,20.98995552,170.55,170.5,20.98995552]
[1748531916844,20.98995552,170.53,170.48,20.98995552]
[1748531917559,20.98995552,170.51,170.46,20.98995552]
[1748531917847,57.98995552,170.5,170.45,20.98995552]
[1748531918455,37.0,170.5,170.47,20.98995552]
[1748531918749,37.0,170.5,170.43,5.86751158]
[1748531918750,26.0,170.52,170.49,20.98995552]
[1748531919057,26.0,170.52,170.43,5.86751158]
[1748531919058,63.0,170.52,170.48,20.98995552]
[1748531919752,62.8306104,170.52,170.48,20.98995552]
[1748531920051,83.82056592,170.52,170.47,20.98995552]
[1748531920235,83.82056592,170.52,170.43,5.86751158]
[1748531920440,83.82056592,170.52,170.47,20.98995552]
[1748531921354,68.69510428,170.52,170.45,20.98995552]
[1748531921544,20.98995552,170.5,170.45,20.98995552]
[1748531921850,83.82056592,170.52,170.48,20.98995552]
[1748531922053,62.8306104,170.52,170.48,20.98995552]
[1748531922443,37.0,170.52,170.48,20.98995552]
[1748531923157,37.0,170.53,170.5,20.98995552]
[1748531923851,37.0,170.53,170.49,20.98995552]
[1748531924242,194.28995552,170.54,170.52,20.98995552]
[1748531924243,147.3,170.54,170.52,20.98995552]
[1748531924450,6.5406,170.61,170.53,20.98995552]
[1748531924642,20.98995552,170.6,170.56,20.98995552]
[1748531924835,1.5603,170.63,170.57,20.98995552]
[1748531925158,20.98995552,170.61,170.56,20.98995552]
[1748531925869,20.98995552,170.61,170.5,46.52785922]
[1748531926055,20.98995552,170.61,170.56,20.98995552]
[1748531927551,20.98995552,170.61,170.49,7.9904]
[1748531927552,20.98995552,170.57,170.49,7.9904]
[1748531927749,20.98995552,170.57,170.52,20.98995552]
[1748531927750,57.98995552,170.57,170.52,20.98995552]
[1748531927947,37.0,170.57,170.55,20.98995552]
[1748531928166,9.96,170.59,170.56,20.98995552]
[1748531928742,9.96,170.59,170.55,20.98995552]
[1748531929785,9.96,170.59,170.56,20.98995552]
[1748531930003,9.96,170.59,170.55,20.98995552]
[1748531932078,9.96,170.59,170.56,20.98995552]
[1748531932280,147.3,170.59,170.57,20.98995552]
[1748531932491,147.3,170.59,170.58,20.98995552]
[1748531933368,46.94,170.64,170.58,20.98995552]
[1748531933568,46.94,170.64,170.61,20.98995552]
[1748531934100,9.96,170.64,170.58,5.86228243]
[1748531934309,9.96,170.64,170.61,20.98995552]
[1748531934605,9.96,170.64,170.6,20.98995552]
[1748531934895,30.94995552,170.64,170.59,20.98995552]
[1748531935100,9.96,170.64,170.61,20.98995552]
[1748531937476,147.3,170.65,170.62,20.98995552]
[1748531937675,147.3,170.65,170.63,20.98995552]
[1748531939393,147.3,170.65,170.62,20.98995552]
[1748531939598,147.3,170.65,170.61,20.98995552]
[1748531939786,20.98995552,170.64,170.59,20.98995552]
[1748531939982,20.98995552,170.63,170.58,20.98995552]
[1748531940179,20.98995552,170.63,170.57,9.96]
[1748531940180,168.28995552,170.64,170.59,20.98995552]
[1748531940381,168.28995552,170.64,170.6,20.98995552]
[1748531940678,168.28995552,170.64,170.59,20.98995552]
[1748531941790,20.98995552,170.63,170.58,20.98995552]
[1748531941981,20.98995552,170.62,170.58,20.98995552]
[1748531942296,36.98,170.63,170.56,8.1136]
[1748531942297,36.98,170.63,170.59,20.98995552]
[1748531942875,36.98,170.63,170.6,20.98995552]
[1748531943680,147.3,170.64,170.62,20.98995552]
[1748531944301,147.3,170.64,170.61,20.98995552]
[1748531945499,147.3,170.64,170.56,8.1136]
[1748531945500,147.3,170.64,170.63,20.98995552]
[1748531945681,184.26,170.68,170.63,20.98995552]
[1748531945876,184.26,170.68,170.65,20.98995552]
[1748531946076,147.3,170.68,170.65,20.98995552]
[1748531953489,147.3,170.68,170.64,20.98995552]
[1748531954910,147.3,170.68,170.65,20.98995552]
[1748531957992,147.3,170.68,170.67,20.98995552]
[1748531959398,184.24,170.72,170.67,20.98995552]
[1748531959604,184.24,170.72,170.68,20.98995552]
[1748531959823,147.3,170.72,170.68,20.98995552]
[1748531959991,147.3,170.72,170.69,20.98995552]
[1748531961526,147.3,170.72,170.68,20.98995552]
[1748531961843,20.98995552,170.7,170.62,7.7198]
[1748531961995,57.92995552,170.69,170.64,20.98995552]
[1748531962197,20.98995552,170.68,170.63,20.98995552]
[1748531962428,20.98995552,170.68,170.64,20.98995552]
[1748531962594,57.92995552,170.69,170.65,20.98995552]
[1748531965017,36.94,170.69,170.65,20.98995552]
[1748531965740,36.94,170.69,170.62,1.6607]
[1748531965897,57.92995552,170.69,170.64,20.98995552]
[1748531966802,57.92995552,170.69,170.62,1.6607]
[1748531967006,57.92995552,170.69,170.64,20.98995552]
[1748531967737,57.92995552,170.69,170.65,20.98995552]
[1748531968438,57.92995552,170.69,170.64,20.98995552]
[1748531968604,20.98995552,170.68,170.64,20.98995552]
[1748531969130,57.92995552,170.69,170.64,20.98995552]
[1748531970604,20.98995552,170.66,170.61,20.98995552]
[1748531970803,20.98995552,170.66,170.57,7.38512308]
[1748531970804,20.98995552,170.63,170.59,20.98995552]
[1748531971004,20.98995552,170.62,170.58,20.98995552]
[1748531971612,42.78000311,170.65,170.58,20.98995552]
[1748531971802,20.98995552,170.63,170.58,20.98995552]
[1748531972005,20.98995552,170.62,170.57,20.98995552]
[1748531972222,20.98995552,170.62,170.58,20.98995552]
[1748531972627,20.98995552,170.61,170.56,20.98995552]
[1748531972931,57.90995552,170.6,170.55,20.98995552]
[1748531973224,20.98995552,170.59,170.54,20.98995552]
[1748531976431,20.98995552,170.56,170.48,34.35542197]
[1748531976634,147.3,170.59,170.53,20.98995552]
[1748531976831,43.5233,170.6,170.53,20.98995552]
[1748531976832,168.28995552,170.58,170.53,20.98995552]
[1748531977037,205.20995552,170.58,170.53,20.98995552]
[1748531978913,168.28995552,170.58,170.53,20.98995552]
[1748531979232,205.20995552,170.58,170.54,20.98995552]
[1748531979430,147.3,170.58,170.55,20.98995552]
[1748531980537,147.3,170.58,170.54,20.98995552]
[1748531981435,168.28995552,170.58,170.54,20.98995552]
[1748531982732,147.3,170.58,170.55,20.98995552]
[1748531986054,147.3,170.58,170.54,20.98995552]
[1748531986259,147.3,170.58,170.55,20.98995552]
[1748531988228,147.3,170.58,170.56,20.98995552]
[1748531989137,147.3,170.58,170.53,5.86406785]
[1748531989323,147.3,170.58,170.52,5.86431831]
[1748531989527,168.28995552,170.58,170.53,20.98995552]
[1748531992357,168.28995552,170.58,170.54,20.98995552]
[1748531994243,168.28995552,170.58,170.51,5.86472901]
[1748531994571,168.28995552,170.58,170.54,20.98995552]
[1748531995968,168.28995552,170.58,170.5,5.86497062]
[1748531996135,168.28995552,170.58,170.53,20.98995552]
[1748531997149,20.98995552,170.57,170.53,20.98995552]
[1748531997566,168.28995552,170.58,170.53,20.98995552]
[1748531998526,168.28995552,170.58,170.54,20.98995552]
[1748531998655,168.28995552,170.58,170.53,20.98995552]
[1748531999754,168.28995552,170.58,170.48,28.4898834]
[1748531999755,20.98995552,170.57,170.48,28.4898834]
[1748531999959,36.92,170.56,170.52,20.98995552]
[1748532000867,57.90995552,170.56,170.51,20.98995552]
[1748532001053,26.0,170.55,170.51,20.98995552]
[1748532001251,46.98995552,170.55,170.51,20.98995552]
[1748532002391,20.98995552,170.53,170.49,20.98995552]
[1748532002558,20.98995552,170.53,170.48,26.9152834]
[1748532002559,147.3,170.52,170.48,37.98523892]
[1748532002758,147.3,170.52,170.48,16.9952834]
[1748532002759,205.20995552,170.52,170.48,16.9952834]
[1748532006291,147.3,170.51,170.48,16.9952834]
[1748532006462,147.3,170.5,170.48,16.9952834]
[1748532006959,168.28995552,170.49,170.48,16.9952834]
[1748532007160,147.3,170.49,170.48,16.9952834]
[1748532007456,184.22,170.49,170.48,16.9952834]
[1748532008381,205.20995552,170.49,170.48,16.9952834]
[1748532008769,57.90995552,170.49,170.48,16.9952834]
[1748532010264,112.45960438,170.49,170.48,16.9952834]
[1748532010459,118.32505103,170.49,170.48,16.9952834]
[1748532010661,118.32505103,170.49,170.37,12.08831438]
[1748532010662,97.33509551,170.49,170.39,20.98995552]
[1748532010883,20.98995552,170.44,170.37,5.86931438]
[1748532011098,20.98995552,170.43,170.39,20.98995552]
[1748532011293,20.98995552,170.42,170.38,20.98995552]
[1748532011464,20.98995552,170.42,170.36,7.48938226]
[1748532011665,20.98995552,170.42,170.38,20.98995552]
[1748532011882,20.98995552,170.43,170.36,33.48938226]
[1748532012084,20.98995552,170.43,170.38,20.98995552]
[1748532012302,20.98995552,170.43,170.33,6.0772]
[1748532012303,26.0,170.43,170.33,6.0772]
[1748532012498,26.0,170.43,170.35,20.98995552]
[1748532012788,20.98995552,170.41,170.33,6.0772]
[1748532012990,20.98995552,170.41,170.36,20.98995552]
[1748532013190,35.9,170.43,170.34,5.87048202]
[1748532013410,20.98995552,170.41,170.33,11.94807828]
[1748532013708,35.9,170.43,170.37,20.98995552]
[1748532013879,20.98995552,170.41,170.37,20.98995552]
[1748532014299,35.9,170.43,170.33,11.94807828]
[1748532014502,9.9,170.43,170.39,20.98995552]
[1748532014708,9.9,170.43,170.4,20.98995552]
[1748532016625,9.9,170.43,170.35,5.86994663]
[1748532016909,9.9,170.43,170.39,20.98995552]
[1748532017784,147.3,170.46,170.42,20.98995552]
[1748532018111,9.9,170.48,170.45,20.98995552]
[1748532018314,1.5072,170.52,170.47,20.98995552]
[1748532018621,36.98,170.52,170.49,20.98995552]
[1748532019117,20.98995552,170.52,170.47,20.98995552]
[1748532019493,20.98995552,170.52,170.44,5.8671038]
[1748532019700,107.26712278,170.53,170.48,20.98995552]
[1748532019896,107.26712278,170.53,170.44,5.8671038]
[1748532020096,107.26712278,170.53,170.48,20.98995552]
[1748532020503,9.9,170.53,170.51,20.98995552]
[1748532020709,9.9,170.53,170.52,20.98995552]
[1748532020993,37.02,170.57,170.52,20.98995552]
[1748532021219,58.00995552,170.57,170.52,20.98995552]
[1748532021709,20.98995552,170.56,170.46,48.62595552]
[1748532022026,20.98995552,170.53,170.49,20.98995552]
[1748532022895,20.98995552,170.52,170.47,20.98995552]
[1748532023109,58.00995552,170.52,170.46,1.636]
[1748532023313,20.98995552,170.51,170.46,20.98995552]
[1748532023801,20.98995552,170.5,170.45,20.98995552]
[1748532023988,20.98995552,170.49,170.44,20.98995552]
[1748532026396,20.98995552,170.49,170.45,20.98995552]
[1748532026719,20.98995552,170.47,170.37,22.54465552]
[1748532026919,168.28995552,170.46,170.41,20.98995552]
[1748532027095,147.3,170.45,170.41,20.98995552]
[1748532027802,168.28995552,170.45,170.4,20.98995552]
[1748532028207,168.28995552,170.45,170.37,7.424252]
[1748532028406,147.3,170.44,170.4,20.98995552]
[1748532028590,147.3,170.44,170.41,20.98995552]
[1748532029102,147.3,170.44,170.37,7.424252]
[1748532029292,147.3,170.44,170.37,1.5547]
[1748532029492,147.3,170.44,170.4,20.98995552]
[1748532029730,20.98995552,170.42,170.34,5.87049794]
[1748532029888,58.06995552,170.42,170.37,20.98995552]
[1748532030901,37.08,170.42,170.38,20.98995552]
[1748532031219,58.06995552,170.42,170.33,7.39599743]
[1748532031414,168.28995552,170.41,170.36,20.98995552]
[1748532031611,147.3,170.41,170.37,20.98995552]
[1748532031800,147.3,170.4,170.37,20.98995552]
[1748532031998,147.3,170.4,170.39,20.98995552]
[1748532032206,58.22995552,170.45,170.39,20.98995552]
[1748532032432,173.3,170.46,170.39,20.98995552]
[1748532032592,173.3,170.46,170.41,20.98995552]
[1748532032797,173.3,170.46,170.43,20.98995552]
[1748532032798,184.56,170.46,170.43,20.98995552]
[1748532033213,184.56,170.46,170.37,20.98995552]
[1748532033424,147.3,170.46,170.44,20.98995552]
[1748532033593,147.3,170.46,170.45,20.98995552]
[1748532033801,9.9,170.47,170.45,20.98995552]
[1748532035324,9.9,170.47,170.4,1.5737]
[1748532035498,9.9,170.47,170.45,20.98995552]
[1748532036327,37.24,170.49,170.46,20.98995552]
[1748532036649,37.24,170.49,170.47,20.98995552]
[1748532036796,147.3,170.51,170.48,20.98995552]
[1748532036997,147.3,170.51,170.43,5.86743653]
[1748532037225,147.3,170.51,170.48,20.98995552]
[1748532039025,147.3,170.51,170.42,26.0]
[1748532039026,147.3,170.51,170.47,20.98995552]
[1748532039718,147.3,170.51,170.42,31.86780406]
[1748532039719,37.26,170.5,170.46,20.98995552]
[1748532040600,20.98995552,170.48,170.4,7.9053]
[1748532040808,147.3,170.49,170.43,20.98995552]
[1748532041113,168.28995552,170.49,170.44,20.98995552]
[1748532041311,147.3,170.48,170.44,20.98995552]
[1748532041519,147.3,170.48,170.45,20.98995552]
[1748532042605,147.3,170.48,170.46,20.98995552]
[1748532043135,147.3,170.48,170.41,5.86816279]
[1748532043136,37.26,170.5,170.47,20.98995552]
[1748532043506,36.48628922,170.5,170.47,20.98995552]
[1748532043828,20.98995552,170.51,170.47,20.98995552]
[1748532044136,194.64,170.52,170.48,20.98995552]
[1748532044815,194.62,170.52,170.48,20.98995552]
[1748532045213,194.62,170.52,170.49,20.98995552]
[1748532045517,157.38,170.52,170.49,20.98995552]
[1748532046235,20.98995552,170.51,170.45,20.98995552]
[1748532046421,20.98995552,170.49,170.44,20.98995552]
[1748532046736,58.20995552,170.49,170.44,20.98995552]
[1748532048632,20.98995552,170.48,170.43,20.98995552]
[1748532049829,43.08550478,170.49,170.43,20.98995552]
[1748532050030,20.98995552,170.48,170.43,20.98995552]
[1748532050602,168.28995552,170.48,170.43,20.98995552]
[1748532050913,168.28995552,170.48,170.4,33.9053]
[1748532051229,168.28995552,170.48,170.43,20.98995552]
[1748532051612,147.3,170.48,170.43,20.98995552]
[1748532051811,168.28995552,170.48,170.43,20.98995552]
[1748532053015,147.3,170.48,170.44,20.98995552]
[1748532053921,147.3,170.48,170.47,20.98995552]
[1748532054526,31.06995552,170.52,170.47,20.98995552]
[1748532054527,10.08,170.52,170.47,20.98995552]
[1748532054713,10.08,170.52,170.49,20.98995552]
[1748532054918,47.24,170.52,170.49,20.98995552]
[1748532055321,10.08,170.52,170.5,20.98995552]
[1748532055526,10.08,170.52,170.48,20.98995552]
[1748532055928,10.08,170.52,170.49,20.98995552]
[1748532060929,10.08,170.52,170.5,20.98995552]
[1748532061735,147.3,170.53,170.5,20.98995552]
[1748532062340,147.3,170.53,170.52,20.98995552]
[1748532062641,57.06995552,170.57,170.52,20.98995552]
[1748532062642,183.38,170.57,170.52,20.98995552]
[1748532062827,37.08,170.56,170.53,20.98995552]
[1748532063829,183.38,170.57,170.53,20.98995552]
[1748532064034,157.38,170.57,170.54,20.98995552]
[1748532064353,215.46995552,170.57,170.53,20.98995552]
[1748532064649,215.48995552,170.57,170.53,20.98995552]
[1748532065329,20.98995552,170.56,170.51,20.98995552]
[1748532065646,200.36272214,170.57,170.52,20.98995552]
[1748532065647,221.35267766,170.57,170.52,20.98995552]
[1748532065818,221.35267766,170.57,170.47,14.02669595]
[1748532065819,147.3,170.56,170.53,20.98995552]
[1748532066026,184.42,170.56,170.53,20.98995552]
[1748532067925,147.3,170.56,170.53,20.98995552]
[1748532068760,147.3,170.56,170.55,20.98995552]
[1748532069122,147.3,170.56,170.54,20.98995552]